[Event "Slovakia Open 2022"]
[Site "Bratislava"]
[Date "2022.10.01"]
[Round "4.18"]
[White "Balint, Peter"]
[Black "Bombek, Peter"]
[Result "1/2-1/2"]
[ECO "C11"]
[WhiteElo "2235"]
[BlackElo "2083"]
[Annotator "TA"]
[PlyCount "187"]
[EventDate "2022.09.30"]
[EventCountry "SVK"]
[SourceTitle "playchess.com"]
[Source "ChessBase"]
[SourceQuality "1"]
[TimeControl "2700+10"]

{[%evp 16,187,13,10,8,-3,6,-41,0,-13,0,-27,12,-57,20,0,43,35,45,45,52,44,44,36,45,40,49,21,31,36,29,21,21,33,33,29,33,0,43,35,57,0,60,34,76,33,114,20,119,39,122,42,108,47,60,60,60,60,58,58,64,3,3,0,0,0,10,0,0,0,0,0,0,0,0,0,0,0,0,0,0,-1,-1,-1,0,0,0,-1,0,-86,-106,-29998,-37,-209,-193,-203,-188,-198,-202,-202,-190,-191,-118,-128,-76,-76,-76,-76,-60,-60,-60,-129,-129,-129,-61,-120,-120,-120,-120,-120,-120,-131,-131,-134,-128,-128,-128,-135,-120,-120,-120,-120,-120,-120,-120,-120,-120,-120,-120,-120,-120,-120,-120,-120,-104,-120,-120,-120,-120,-120,-120,-120,0,-120,0,-120,-120,-120,-120,-120,-120,-120,-118,-118,-118,-112,-112,-112,-62,-118,-62,-62,-53,-53]} 1. e4 {[%emt 0:00:05]} e6 {[%emt 0:00:02]} 2. d4 {[%emt 0:00:01]} d5 {[%emt 0:00:02]} 3. Nc3 {[%emt 0:00:10]} Nf6 {[%emt 0:00:01]} 4. e5 {[%emt 0:00:02]} Nfd7 {[%emt 0:00:03]} 5. f4 {[%emt 0:00:00]} c5 {[%emt 0:00:01]} 6. Nf3 {[%emt 0:00:00]} Nc6 {[%emt 0:00:02]} 7. Be3 {[%emt 0:00:00]} Be7 {[%emt 0:00:01]} 8. Qd2 {[%emt 0:00:02]} a6 {[%emt 0:00:32]} 9. dxc5 {[%emt 0:00:11]} Nxc5 {[%emt 0:00:10] C11: French: Classical System: 4 e5 and 4 Bg5 dxe4.} 10. O-O-O {[%emt 0:00:04]} b5 {[%emt 0:00:17]} 11. Bd3 {[%emt 0:00:05] [#]} (11. Qf2 $11 Nd7 12. Kb1) 11... Qc7 $146 {[%emt 0:02:19]} ({Predecessor:} 11... b4 12. Ne2 Qa5 13. Kb1 Rb8 14. Ned4 Nxd4 15. Nxd4 Bd7 16. f5 Na4 17. Qf2 exf5 18. Bxf5 Bxf5 19. Qxf5 Nxb2 20. Rdf1 f6 21. exf6 b3 22. f7+ {1-0 (22) Ivic,V (2394)-Zeman,M (2203) Montevideo 2017}) 12. Kb1 {[%emt 0:00:56]} Bd7 {[%emt 0:01:13]} 13. g4 {[%emt 0:02:34]} Na5 {[%emt 0:03:13]} (13... b4 $5 {[%cal Rb4c3]} 14. Ne2 a5 $11) 14. Qg2 {[%emt 0:15:04]} (14. f5 $11) 14... Na4 {[%emt 0:06:26]} (14... Nxd3 $15 15. Rxd3 O-O) 15. Ne2 {[%emt 0:04:00]} Nc4 {[%emt 0:08:34]} 16. Bc1 {[%emt 0:00:07]} Nc5 {[%emt 0:01:45]} 17. Nfd4 {[%emt 0:01:55]} g6 {[%emt 0:03:41]} 18. h4 {[%emt 0:01:00]} O-O-O {[%emt 0:02:43]} 19. g5 {[%emt 0:09:16]} Qb6 {[%emt 0:05:14]} 20. h5 {[%emt 0:02:59]} Kb8 {[%emt 0:02:31]} 21. hxg6 {[%emt 0:00:58]} hxg6 {[%emt 0:00:07]} 22. Rxh8 {[%emt 0:01:53]} Rxh8 {[%emt 0:00:03]} 23. Rh1 {[%emt 0:00:07]} Rxh1 {[%emt 0:01:59]} 24. Qxh1 {[%emt 0:00:09] And now Qh7 would win.} Qd8 {[%emt 0:01:24]} 25. Qh7 {[%emt 0:00:16]} Qe8 {[%emt 0:00:16]} 26. Ng3 {[%emt 0:03:35]} Kc7 {[%emt 0:02:33]} 27. Be2 {[%emt 0:01:00]} Nb7 {[%emt 0:01:18]} 28. Bd3 {[%emt 0:01:16]} (28. c3 $14) 28... Nca5 {[%emt 0:00:12]} (28... Nc5 $11) 29. Bd2 {[%emt 0:00:46]} Nc6 {[%emt 0:00:10]} 30. Nge2 {[%emt 0:00:10] White has more active pieces.} Bc5 {[%emt 0:00:48]} (30... Nxd4 $14 31. Nxd4 Nc5) 31. c3 {[%emt 0:00:34]} (31. Nxc6 $1 $16 Kxc6 32. Qh3) 31... Kb6 {[%emt 0:00:50]} (31... Nxd4 $1 $11 32. Nxd4 Bb6) 32. Be3 {[%emt 0:00:04]} (32. Nc2 $16) 32... Kc7 {[%emt 0:00:33]} (32... b4 $14) 33. Bc2 {[%emt 0:00:12]} ({Better is} 33. b4 $16 Bb6 34. Qh3) 33... Bb6 {[%emt 0:00:16]} (33... Nxd4 $14 34. Nxd4 a5) 34. Qg7 {[%emt 0:00:49]} (34. b4 $16) 34... Nc5 {[%emt 0:00:18]} 35. a3 {[%emt 0:00:13]} Nxd4 {[%emt 0:00:31]} 36. Nxd4 {[%emt 0:00:05]} Ne4 {[%emt 0:00:22]} 37. Qh7 {[%emt 0:00:14]} Qf8 {[%emt 0:00:21]} 38. Bxe4 {[%emt 0:00:09]} (38. Qh2 $14) 38... dxe4 {[%emt 0:00:01]} 39. Qh1 {[%emt 0:00:02]} Bxd4 {[%emt 0:00:05]} 40. Bxd4 $11 {[%emt 0:00:04][%mdl 4096] Endgame KQB-KQB} Bc6 {[%emt 0:00:01]} 41. Qg1 {[%emt 0:00:14]} Kb7 {[%emt 0:00:23]} 42. Bc5 {[%emt 0:00:14]} Qd8 {[%emt 0:00:05]} 43. Bd6 {[%emt 0:00:02]} Qb6 {[%emt 0:00:04]} 44. Bc5 {[%emt 0:00:21]} Qd8 {[%emt 0:00:01]} 45. Bd4 {[%emt 0:00:06]} Qd5 {[%emt 0:00:14]} 46. Ba7 {[%emt 0:00:22]} Ka8 {[%emt 0:00:31]} 47. Bd4 {[%emt 0:00:16]} Qc4 {[%emt 0:00:09]} 48. Qe3 {[%emt 0:00:12]} Bd5 {[%emt 0:00:06]} 49. Kc2 {[%emt 0:00:09]} Qb3+ {[%emt 0:00:04]} 50. Kc1 {[%emt 0:00:03]} Qc4 {[%emt 0:00:05]} 51. Kc2 {[%emt 0:00:02]} Qf1 {[%emt 0:00:17]} 52. Qd2 {[%emt 0:00:27]} (52. Bb6 $11) 52... Ba2 $17 {[%emt 0:00:17][%csl Ga2][%cal Rf1b1]} 53. c4 $2 {[%emt 0:00:11][%mdl 8192] [#]} (53. Qe3 $17) 53... Qxc4+ $2 {[%emt 0:00:12]} (53... Bb3+ $1 {[%mdl 512] mates} 54. Kxb3 Qxc4#) 54. Bc3 $2 {[%emt 0:00:02]} (54. Qc3 $15) 54... Bb3+ $1 $19 {[%emt 0:00:02]} 55. Kc1 {[%emt 0:00:04]} Qf1+ {[%emt 0:00:04]} 56. Qe1 {[%emt 0:00:03]} Qxf4+ {[%emt 0:00:03]} 57. Qd2 {[%emt 0:00:13]} Qf1+ {[%emt 0:00:14]} 58. Qe1 {[%emt 0:00:01]} Qd3 {[%emt 0:00:07]} (58... Qf3 $19 {Strongly threatening ...e3.} 59. Qd2 Qh1+ 60. Qe1 Qf3) 59. Qd2 $17 {[%emt 0:00:04]} Kb7 {[%emt 0:00:20]} ({Black should try} 59... Qd5 {[%cal Oe4e3]} 60. Qd4 e3 61. Qxd5+ Bxd5) 60. Qxd3 {[%emt 0:00:05]} exd3 {[%emt 0:00:01] KB-KB} 61. Kd2 {[%emt 0:00:01]} Bc4 {[%emt 0:00:04]} 62. Ke3 {[%emt 0:00:02]} Kc6 {[%emt 0:00:02]} 63. Bd4 {[%emt 0:00:10]} (63. Ke4 $15) 63... Kd5 {[%emt 0:00:03][%cal Od3d2]} 64. Bc3 {[%emt 0:00:01]} Kc5 {[%emt 0:00:30]} (64... a5 $17 {[%cal Ob5b4] ...b4! is the strong threat.} 65. Bxa5 Kxe5) 65. Bd4+ {[%emt 0:00:02] [#]} ({White should play} 65. Ke4 $15) 65... Kc6 $1 {[%emt 0:00:01]} 66. Bc3 {[%emt 0:00:02]} Kd5 {[%emt 0:00:11]} 67. Kf4 {[%emt 0:00:04]} Bb3 {[%emt 0:00:06]} 68. Ke3 {[%emt 0:00:04]} Bc2 {[%emt 0:00:01]} 69. Kf4 {[%emt 0:00:07]} Kc4 {[%emt 0:00:02]} 70. Ke3 {[%emt 0:00:02]} Kb3 {[%emt 0:00:01]} 71. Kd2 {[%emt 0:00:02]} a5 {[%emt 0:00:09]} 72. Bxa5 {[%emt 0:00:15]} Kxb2 {[%emt 0:00:02]} 73. Bb4 {[%emt 0:00:01]} Kb3 {[%emt 0:00:01]} 74. Be7 {[%emt 0:00:14]} Kc4 {[%emt 0:00:01]} 75. Ke3 {[%emt 0:00:27]} Bd1 {[%emt 0:00:06]} 76. Bb4 {[%emt 0:00:15]} Bg4 {[%emt 0:00:13]} 77. Bd2 {[%emt 0:00:47]} Bf5 {[%emt 0:00:21]} 78. Bb4 {[%emt 0:00:03]} Bh3 {[%emt 0:00:07]} 79. Be7 {[%emt 0:00:15]} Kd5 {[%emt 0:00:12]} 80. Bf6 {[%emt 0:00:37]} Bf5 {[%emt 0:00:12]} 81. Bg7 {[%emt 0:00:11]} Kc4 {[%emt 0:00:47]} 82. Bf8 {[%emt 0:00:04] Prevents b4.} Bg4 {[%emt 0:00:10]} 83. Be7 {[%emt 0:00:05]} Bd1 {[%emt 0:00:11]} (83... Be2 $17 84. Bb4 Bg4) 84. Bf8 {[%emt 0:00:18]} (84. Bb4 $1 $11) 84... Bc2 {[%emt 0:00:03]} 85. Be7 $1 {[%emt 0:00:04]} Bb1 {[%emt 0:00:02]} 86. Bf8 {[%emt 0:00:11]} Kc3 {[%emt 0:00:25]} 87. Bb4+ {[%emt 0:00:05]} Kb3 {[%emt 0:00:02]} 88. Be7 {[%emt 0:00:07] [#]} Kc2 $1 {[%emt 0:00:37] ( -> ...d2)} 89. Bb4 {[%emt 0:00:03] Prevents d2.} Ba2 {[%emt 0:00:03]} 90. Bd2 {[%emt 0:00:17]} Bd5 {[%emt 0:00:15]} 91. Bb4 {[%emt 0:00:04]} Bc4 {[%emt 0:00:12]} (91... Bf3 $17 92. Bd2 Bg2) 92. Bd2 {[%emt 0:00:05]} (92. Be1 $15) 92... Kb3 {[%emt 0:00:08]} (92... Bb3 $17 93. Bb4 Bc4) 93. Bb4 $15 {[%emt 0:00:03]} d2 {[%emt 0:00:15]} 94. Kxd2 {[%emt 0:00:07] White happily takes the draw.  Weighted Error Value: White=0.34/Black=0.33} 1/2-1/2

[Event "Slovakia Open 2022"]
[Site "Bratislava"]
[Date "2022.10.01"]
[Round "4.19"]
[White "Babula, Matej"]
[Black "Merva, Frantisek"]
[Result "0-1"]
[ECO "B00"]
[WhiteElo "1864"]
[BlackElo "1981"]
[Annotator "TA"]
[PlyCount "80"]
[EventDate "2022.09.30"]
[EventCountry "SVK"]
[SourceTitle "playchess.com"]
[Source "ChessBase"]
[SourceQuality "1"]
[TimeControl "2700+10"]

{[%evp 16,80,5,4,14,10,14,12,9,16,23,5,23,0,31,19,20,0,0,-16,0,-43,14,5,20,10,9,0,37,0,16,0,0,-24,110,75,441,428,440,130,237,41,49,0,61,0,108,62,192,47,54,0,0,-104,-112,-124,-90,-509,-503,-1277,-1153,-29981,-29982,-29978,-29980,-29993,-29994]} 1. e4 {[%emt 0:00:05]} b6 {[%emt 0:00:37]} 2. d4 {[%emt 0:00:05]} Bb7 {[%emt 0:00:04]} 3. Nc3 {[%emt 0:00:14]} e6 {[%emt 0:00:04]} 4. Nf3 {[%emt 0:01:47]} Bb4 {[%emt 0:00:05]} 5. Bd3 {[%emt 0:00:31]} Nf6 {[%emt 0:00:04]} 6. Qe2 {[%emt 0:01:24]} d5 {[%emt 0:00:08]} 7. e5 {[%emt 0:01:46]} Ne4 {[%emt 0:00:04]} 8. Bd2 {[%emt 0:00:20]} Nxd2 {[%emt 0:00:25]} 9. Qxd2 {[%emt 0:00:54]} h6 {[%emt 0:00:21] B00: Queen's Fianchetto Defence, Nimzowitsch Defence.} 10. O-O {[%emt 0:01:08] [#]} Be7 $146 {[%emt 0:00:40]} ({Predecessor:} 10... O-O 11. Qf4 Nd7 12. Ne2 Be7 13. Ng3 Bg5 14. Qg4 f5 15. Qh5 Qe8 16. Qxe8 Raxe8 17. Nxg5 hxg5 {½-½ (43) Boehm,M-Sawall,H Kiel 2003}) 11. Ne2 {[%emt 0:02:07]} c5 {[%emt 0:00:07] The position is equal.} 12. c3 {[%emt 0:00:17]} Nc6 {[%emt 0:02:25]} 13. Rac1 {[%emt 0:02:26]} a6 {[%emt 0:06:33]} 14. Ne1 {[%emt 0:03:38][%cal Bf3e1,Be1d3,Bd3c5][%mdl 32]} cxd4 {[%emt 0:05:17]} 15. cxd4 {[%emt 0:00:15]} b5 {[%emt 0:00:18]} 16. f4 {[%emt 0:02:37]} g6 {[%emt 0:04:08]} 17. g4 {[%emt 0:03:12]} Qb6 {[%emt 0:01:19]} 18. Bb1 {[%emt 0:01:55]} O-O-O {[%emt 0:03:09]} (18... h5 $15) 19. Nd3 $11 {[%emt 0:02:02]} Kb8 {[%emt 0:00:08]} 20. Nc5 {[%emt 0:00:43]} h5 {[%emt 0:00:24]} (20... Qa5 $5 {[%cal Ra5d2]} 21. Qe3 Rc8 $11) 21. g5 {[%emt 0:01:08]} b4 {[%emt 0:07:24]} (21... Qa5 $5 {[%cal Ra5d2]} 22. Qe3 Rc8 $11) 22. Kh1 {[%emt 0:02:59]} Bxc5 {[%emt 0:05:48]} 23. Rxc5 {[%emt 0:00:31]} Rc8 {[%emt 0:00:23]} 24. Rfc1 {[%emt 0:00:41]} Kc7 {[%emt 0:00:19]} (24... Na5 $11) 25. Bc2 {[%emt 0:04:42][%cal Of4f5]} Kd7 $2 {[%emt 0:02:58][%mdl 8192]} (25... Kb8 $16 {is a better chance.}) 26. Ba4 $18 {[%emt 0:00:10]} Ke7 {[%emt 0:00:08]} 27. R1c2 $2 {[%emt 0:02:46]} (27. Qc2 $18) 27... Rhd8 {[%emt 0:01:17] [#]} (27... b3 $16 28. Bxb3 (28. axb3 Nb4 $14) 28... Nb4) 28. Nc1 $2 {[%emt 0:00:51]} ({White must play} 28. f5 $1 $18 exf5 29. Nf4) 28... Kf8 $14 {[%emt 0:01:01]} 29. Qe3 {[%emt 0:02:06]} (29. Bxc6 $14 Rxc6 30. Nd3) 29... Kg7 {[%emt 0:00:05]} ({Better is} 29... Ne7 $11 30. Qd3 Bc6 31. Bxc6 Rxc6) 30. Nd3 {[%emt 0:00:19]} (30. f5 $14) 30... Na5 {[%emt 0:00:39]} (30... Ne7 $1 $11) 31. b3 {[%emt 0:01:40]} (31. f5 $16 {aiming for fxg6.} exf5 32. b3) 31... Bc6 {[%emt 0:00:03]} ({Black should try} 31... Nc4 $1 $14 32. Qf2 (32. bxc4 $2 dxc4+ 33. Kg1 cxd3 $19) 32... Na3) 32. Bxc6 {[%emt 0:00:10]} ({Stronger than} 32. Rxa5 Bb5 33. Rxb5 (33. Rxc8 Rxc8 34. Rxb5 axb5 $17) 33... axb5 $15) (32. Qf2 $18) 32... Rxc6 {[%emt 0:00:17]} 33. Qc1 {[%emt 0:01:44]} (33. f5 $14 exf5 34. Nf4 Rxc5 35. Rxc5) 33... Rxc5 $11 {[%emt 0:00:21]} 34. Rxc5 {[%emt 0:01:00]} (34. Nxc5 $11 {remains equal.} Nb7 35. Qd2) 34... Nb7 $17 {[%emt 0:00:24]} 35. Rc7 {[%emt 0:00:54]} Qxd4 {[%emt 0:00:01]} 36. Rxb7 $2 {[%emt 0:00:30][%mdl 8192]} (36. Qd2 $17 {is more resistant.} Na5 37. Qe2) 36... Qxd3 $19 {[%emt 0:00:04]} 37. Kg2 {[%emt 0:01:01]} (37. Rc7 $142 h4 38. Kg1) 37... d4 {[%emt 0:00:05][%cal Bd5d4,Bd4d3,Bd3d2][%mdl 32] [#] ...Qe2+ is the strong threat.} 38. Rxb4 {[%emt 0:00:19]} Qe2+ {[%emt 0:00:11] Black mates.} 39. Kg1 {[%emt 0:00:17]} d3 {[%emt 0:00:19]} 40. f5 {[%emt 0:00:24]} d2 {[%emt 0:00:47] Never resign too early!  Weighted Error Value: White=1.03/Black=0.42} 0-1

[Event "Slovakia Open 2022"]
[Site "Bratislava"]
[Date "2022.10.01"]
[Round "4.20"]
[White "Mikulas, Dusan"]
[Black "Prochazka, Peter"]
[Result "1-0"]
[ECO "B01"]
[WhiteElo "2047"]
[BlackElo "1792"]
[Annotator "TA"]
[PlyCount "87"]
[EventDate "2022.09.30"]
[EventCountry "SVK"]
[SourceTitle "playchess.com"]
[Source "ChessBase"]
[SourceQuality "1"]
[TimeControl "2700+10"]

{[%evp 10,87,58,32,53,17,44,8,29,25,38,35,54,60,85,89,92,98,107,100,105,110,109,108,104,97,147,149,139,151,142,144,187,195,194,179,187,191,227,210,222,216,346,307,521,514,606,604,567,581,592,574,621,590,635,629,635,600,592,590,29975,29977,12803,7328,29977,29978,6127,6079,29981,29982,29982,29981,29988,29989,29989,29990,29990,29991,29991,29992]} 1. e4 {[%emt 0:00:15]} d5 {[%emt 0:01:30]} 2. exd5 {[%emt 0:00:04]} Qxd5 {[%emt 0:00:03]} 3. Nc3 {[%emt 0:00:01]} Qd6 {[%emt 0:00:01]} 4. d4 {[%emt 0:00:58]} Nf6 {[%emt 0:00:12]} 5. Nf3 {[%emt 0:00:38]} a6 {[%emt 0:00:27]} 6. h3 {[%emt 0:00:30]} Nc6 {[%emt 0:01:58] B01: Scandinavian Defence.} 7. Be3 {[%emt 0:00:11]} Bf5 {[%emt 0:01:14]} 8. Qd2 {[%emt 0:00:14]} O-O-O {[%emt 0:01:25] [#] The position is equal.} 9. Bd3 $146 {[%emt 0:07:33]} ({Predecessor:} 9. O-O-O e6 10. Bd3 Bxd3 11. Qxd3 Nb4 12. Qd2 Nbd5 13. Ne5 Qe7 14. Bg5 h6 15. Bh4 {1-0 (37) Schmitz,S (1767)-Engelhard,A (1307) Karlsruhe 2008}) 9... Bxd3 {[%emt 0:03:03]} 10. Qxd3 {[%emt 0:00:13] Hoping for Ng5.} e5 {[%emt 0:00:32][%cal Re5d4]} 11. Qf5+ {[%emt 0:02:57]} Qd7 {[%emt 0:02:21]} 12. Qxd7+ {[%emt 0:00:43]} Nxd7 {[%emt 0:00:27]} 13. d5 {[%emt 0:00:53]} Na5 {[%emt 0:04:05]} 14. Ng5 {[%emt 0:02:05]} f6 {[%emt 0:07:57]} 15. Nf7 {[%emt 0:00:34][%csl LRd8,LRh8]} Bb4 {[%emt 0:00:09]} 16. Nxh8 {[%emt 0:00:09] White is more active.} Rxh8 {[%emt 0:00:30]} 17. Ke2 {[%emt 0:02:58]} Nc4 {[%emt 0:02:20] [#]} (17... Bxc3 $142 18. bxc3 Nc4) 18. Nd1 $1 $16 {[%emt 0:01:14]} f5 {[%emt 0:02:52]} 19. b3 {[%emt 0:01:52]} Nd6 {[%emt 0:06:39]} 20. a3 {[%emt 0:03:09]} Bc5 {[%emt 0:00:11]} 21. Bxc5 {[%emt 0:01:53]} Nxc5 {[%emt 0:00:01]} 22. Nc3 {[%emt 0:02:38]} Rd8 {[%emt 0:01:04]} 23. f3 {[%emt 0:01:19]} e4 {[%emt 0:02:34]} 24. Rhe1 {[%emt 0:01:39]} Re8 {[%emt 0:03:06]} 25. Kf2 {[%emt 0:01:56]} f4 {[%emt 0:00:35]} (25... b6 $142 26. Ke3 Nd7 27. fxe4 fxe4) 26. fxe4 {[%emt 0:01:03]} Ncxe4+ $2 {[%emt 0:00:01]} (26... Nd7 {was called for.} 27. g3 fxg3+ 28. Kxg3 b5) 27. Nxe4 $18 {[%emt 0:00:39]} Nxe4+ {[%emt 0:00:07][%mdl 4096] Endgame KRR-KRN} 28. Kf3 {[%emt 0:02:13]} Nf6 {[%emt 0:01:34]} 29. Rxe8+ {[%emt 0:00:06]} Nxe8 {[%emt 0:00:01]} 30. Kxf4 {[%emt 0:00:06] KR-KN} Kd7 {[%emt 0:00:38]} 31. Ke5 {[%emt 0:00:21]} Nd6 {[%emt 0:00:11]} 32. Rf1 {[%emt 0:00:41]} Ke7 {[%emt 0:00:02]} 33. c4 {[%emt 0:00:19]} b6 {[%emt 0:00:06]} 34. Rf4 {[%emt 0:00:47]} Nf7+ {[%emt 0:01:51] [#]} 35. Rxf7+ $1 {[%emt 0:01:01]} Kxf7 {[%emt 0:00:01] KP-KP} 36. b4 {[%emt 0:01:28] c5 would kill now.} Ke7 {[%emt 0:00:13]} 37. c5 {[%emt 0:00:03]} Kd7 {[%emt 0:00:21]} 38. a4 {[%emt 0:01:03] White threatens cxb6 and mate.} Ke7 {[%emt 0:00:12]} 39. cxb6 {[%emt 0:00:22] White mates.} cxb6 {[%emt 0:00:02]} 40. d6+ {[%emt 0:00:02][%cal Bd5d6,Bd6d7][%mdl 32]} Kd8 {[%emt 0:00:12]} 41. Ke6 {[%emt 0:00:41]} Ke8 {[%emt 0:00:10]} 42. b5 {[%emt 0:00:42]} a5 {[%emt 0:00:14]} 43. d7+ {[%emt 0:00:06]} Kd8 {[%emt 0:00:03]} 44. Kd6 {[%emt 0:00:05] Weighted Error Value: White=0.05 (flawless) /Black=0.84} 1-0

[Event "Slovakia Open 2022"]
[Site "Bratislava"]
[Date "2022.10.01"]
[Round "4.21"]
[White "Csontos, Aron"]
[Black "Rosol, Alexander"]
[Result "0-1"]
[ECO "C41"]
[WhiteElo "1962"]
[BlackElo "2041"]
[Annotator "TA"]
[PlyCount "85"]
[EventDate "2022.09.30"]
[EventCountry "SVK"]
[SourceTitle "playchess.com"]
[Source "ChessBase"]
[SourceQuality "1"]
[TimeControl "2700+10"]

{[%evp 18,85,58,42,52,21,24,25,41,25,38,32,57,44,91,79,106,114,103,105,121,115,133,114,139,118,129,137,128,54,75,18,18,0,9,0,0,0,0,0,0,0,0,0,8,0,16,7,61,60,57,0,0,0,0,0,0,-6,108,14,175,171,272,271,836,627,5943,5943,29979,5943]} 1. e4 {[%emt 0:00:06]} d6 {[%emt 0:01:57]} 2. d4 {[%emt 0:00:02]} Nf6 {[%emt 0:00:10]} 3. Nc3 {[%emt 0:00:03]} e5 {[%emt 0:00:02]} 4. Nf3 {[%emt 0:00:03]} Nbd7 {[%emt 0:00:02]} 5. Bc4 {[%emt 0:00:12]} Be7 {[%emt 0:00:02]} 6. O-O {[%emt 0:00:16]} c6 {[%emt 0:00:04]} 7. a4 {[%emt 0:00:09]} O-O {[%emt 0:00:06]} 8. h3 {[%emt 0:00:29]} h6 {[%emt 0:00:10]} 9. Be3 {[%emt 0:00:39]} a5 {[%emt 0:00:07]} 10. Re1 {[%emt 0:00:45]} Re8 {[%emt 0:00:04] C41: Philidor Defence.} 11. Ba2 {[%emt 0:02:45]} exd4 {[%emt 0:01:25]} 12. Nxd4 {[%emt 0:00:35][%cal Bf3d4,Bd4e2,Be2f4][%mdl 32] 12.Bxd4 deserves study.} Nc5 {[%emt 0:00:11] [#] White has an edge.} 13. f3 $146 {[%emt 0:02:07]} ({Predecessor:} 13. Qf3 Bf8 14. Bf4 Be6 15. Nxe6 Nxe6 16. Bg3 Qb6 17. Rad1 Rad8 18. Bh4 Ng5 19. Qd3 {½-½ (34) Kryvoruchko,Y (2683)-Golubovic,B (2393) Terme Catez 2022}) 13... Bf8 {[%emt 0:00:17]} 14. Qd2 {[%emt 0:02:11]} Nh7 {[%emt 0:03:17]} 15. Qf2 {[%emt 0:02:08]} Qf6 {[%emt 0:05:41]} (15... Be7 $14 {deserves consideration.}) 16. Rad1 $16 {[%emt 0:02:00]} Qg6 {[%emt 0:01:02]} 17. Nde2 {[%emt 0:03:04]} Ng5 {[%emt 0:02:59] White must now prevent ...Nxh3+.} 18. Kh1 {[%emt 0:01:30]} Na6 {[%emt 0:01:48]} 19. Nf4 {[%emt 0:04:03]} Qh7 {[%emt 0:00:14]} 20. Qg3 {[%emt 0:01:01]} Nb4 {[%emt 0:02:26]} 21. Bb3 {[%emt 0:00:24]} Be6 {[%emt 0:04:01]} 22. Nxe6 {[%emt 0:01:49]} Nxe6 {[%emt 0:00:07]} 23. Na2 {[%emt 0:01:35]} ({White should play} 23. Ne2 $16) 23... Na6 $14 {[%emt 0:00:32]} 24. Bxe6 {[%emt 0:00:14]} (24. Bc4 $16) 24... Rxe6 $11 {[%emt 0:00:20]} 25. Bb6 {[%emt 0:01:18]} d5 {[%emt 0:01:30][%cal Rd5e4]} 26. exd5 {[%emt 0:01:03]} Rxe1+ {[%emt 0:00:12]} 27. Qxe1 {[%emt 0:00:04] d6 is the strong threat.} Qxc2 {[%emt 0:00:12]} 28. d6 $1 {[%emt 0:03:20] aiming for d7.} Qxb2 {[%emt 0:01:02]} 29. Qxa5 {[%emt 0:00:10]} Bxd6 {[%emt 0:04:05]} 30. Rxd6 {[%emt 0:00:47] Strongly threatening Nc3.} Qxa2 {[%emt 0:00:04]} 31. Rd7 {[%emt 0:03:44] Against Nc7} Qb1+ {[%emt 0:07:58]} 32. Kh2 {[%emt 0:00:57][%mdl 1024] White has compensation.} Nc7 {[%emt 0:00:06]} 33. Qh5 $14 {[%emt 0:01:12]} g6 {[%emt 0:00:06]} 34. Qc5 $40 {[%emt 0:01:12][%mdl 128] Black needs to defend precisely.} ({White should try} 34. Qxh6 $14 Qxb6 35. Qf4) 34... Ne6 $11 {[%emt 0:00:44]} 35. Qe7 {[%emt 0:00:33]} Qf5 {[%emt 0:00:03]} 36. Bf2 {[%emt 0:02:14]} b5 {[%emt 0:02:46]} 37. a5 {[%emt 0:04:08]} c5 {[%emt 0:02:24] [#]} (37... Rxa5 $11 38. Qe8+ Kg7) 38. Rb7 {[%emt 0:00:41]} (38. Ra7 $1 $16 {[%cal Ra7a8]} Rf8 39. Rb7) 38... Kg7 $2 {[%emt 0:02:45] This move loses the game for Black.} (38... Rxa5 $2 39. Qe8+ Nf8 40. Rb8 (40. Bxc5 Qf4+ 41. Kh1 Ra1+ 42. Bg1 Rd1 $17) 40... Qf4+ 41. Bg3 Qxb8 42. Qxb8 $18) (38... Nd4 $1 $11) 39. Rxb5 $18 {[%emt 0:00:46]} Rd8 {[%emt 0:00:22]} (39... Qf6 $142 40. Qxf6+ (40. Bxc5 Qf4+ 41. Kh1 Qc4 $11) 40... Kxf6) 40. Rxc5 {[%emt 0:00:55]} (40. Bxc5 {gets mated.} Qe5+ 41. Kh1 Rd1+ 42. Bg1 Qxb5 43. Qa3 Qf1 44. Qb2+ Nd4) 40... Nxc5 {[%emt 0:00:13]} (40... Qf6 41. Qxf6+ Kxf6) 41. Qxd8 {[%emt 0:00:06]} Nd3 {[%emt 0:00:01]} 42. Bd4+ {[%emt 0:00:13]} f6 {[%emt 0:00:20] [#]} 43. Qxf6+ $1 {[%emt 0:00:47][%mdl 33280] Weighted Error Value: White=0.16 (very precise) /Black=0.38. Loss on time!?} 0-1